bitfinex/quotes_SOLUSD_20241214
["timestamp","ask_amount","ask_price","bid_price","bid_amount"]
[1734152567451,23.776884,225.27,225.22,7.46267222]
[1734152568247,9.49103124,225.28,225.23,7.46267222]
[1734152572478,9.49103124,225.28,225.22,7.46267222]
[1734152573543,8.16405149,225.31,225.22,7.46267222]
[1734152573749,23.776884,225.3,225.22,7.46267222]
[1734152574049,23.776884,225.3,225.21,7.46267222]
[1734152576167,23.776884,225.3,225.2,13.51147222]
[1734152579355,23.776884,225.3,225.21,7.46267222]
[1734152580578,23.776884,225.3,225.2,13.51147222]
[1734152581179,23.776884,225.3,225.21,7.46267222]
[1734152588894,23.776884,225.28,225.19,0.1656908]
[1734152589081,23.776884,225.28,225.19,7.62836302]
[1734152589465,23.776884,225.28,225.2,7.46267222]
[1734152592281,23.776884,225.28,225.21,7.46267222]
[1734152592672,9.87245423,225.33,225.21,7.46267222]
[1734152592872,20.0,225.3,225.22,7.46267222]
[1734152593706,15.42005423,225.33,225.22,7.46267222]
[1734152594294,23.776884,225.32,225.22,7.46267222]
[1734152595388,23.776884,225.32,225.19,0.1656908]
[1734152595584,23.776884,225.32,225.22,7.46267222]
[1734152597724,23.776884,225.3,225.19,0.1656908]
[1734152597884,23.776884,225.3,225.19,7.62836302]
[1734152598288,23.776884,225.3,225.19,0.1656908]
[1734152599219,23.776884,225.28,225.19,0.1656908]
[1734152599420,23.776884,225.28,225.19,7.62836302]
[1734152600021,23.776884,225.28,225.19,0.1656908]
[1734152601944,5.5488,225.27,225.19,0.1656908]
[1734152602150,23.776884,225.26,225.19,0.1656908]
[1734152604648,23.776884,225.24,225.19,0.1656908]
[1734152606347,5.5498,225.23,225.19,0.1656908]
[1734152606643,23.776884,225.22,225.19,0.1656908]
[1734152618491,23.776884,225.23,225.19,0.1656908]
[1734152638141,20.0,225.26,225.19,0.1656908]
[1734152638428,5.5484,225.29,225.2,7.46267222]
[1734152639853,5.5484,225.29,225.19,0.1656908]
[1734152639854,5.5484,225.29,225.19,7.62836302]
[1734152640540,5.5484,225.29,225.19,0.1656908]
[1734152641543,23.776884,225.28,225.19,0.1656908]
[1734152646460,23.776884,225.28,225.19,7.62836302]
[1734152647237,23.776884,225.28,225.19,0.1656908]
[1734152651161,23.776884,225.26,225.19,0.1656908]
[1734152653474,20.0,225.28,225.19,0.1656908]
[1734152653641,23.776884,225.29,225.19,0.1656908]
[1734152654452,29.325384,225.29,225.19,0.1656908]
[1734152655052,29.07830641,225.29,225.19,0.1656908]
[1734152657475,20.0,225.26,225.19,0.1656908]
[1734152657678,23.776884,225.25,225.19,0.1656908]
[1734152658064,12.44510672,225.31,225.19,0.1656908]
[1734152658369,9.93478015,225.32,225.23,7.46267222]
[1734152660052,9.93478015,225.32,225.24,7.46267222]
[1734152661580,9.93478015,225.32,225.26,7.46267222]
[1734152661889,9.93478015,225.32,225.27,8.2769]
[1734152663508,5.547,225.35,225.27,15.73957222]
[1734152663509,20.0,225.35,225.27,15.73957222]
[1734152665830,23.776884,225.38,225.29,7.46267222]
[1734152666300,5.5459,225.39,225.29,7.46267222]
[1734152667303,5.5459,225.39,225.29,7.35267222]
[1734152667620,23.776884,225.38,225.29,7.35267222]
[1734152674996,9.93060812,225.42,225.31,7.46267222]
[1734152675195,23.776884,225.41,225.32,7.46267222]
[1734152675406,23.776884,225.41,225.33,7.46267222]
[1734152675831,9.93060812,225.42,225.34,7.46267222]
[1734152676534,9.93060812,225.42,225.35,7.46267222]
[1734152676733,9.93060812,225.42,225.36,1.6647]
[1734152693538,23.776884,225.41,225.36,1.6647]
[1734152697126,9.93060812,225.42,225.36,1.6647]
[1734152710277,5.5438,225.48,225.37,13.88247222]
[1734152710449,5.5438,225.48,225.38,7.46267222]
[1734152710776,5.5438,225.48,225.39,7.46267222]
[1734152711152,5.5438,225.48,225.37,6.4198]
[1734152711349,5.5438,225.48,225.38,7.46267222]
[1734152712157,23.776884,225.47,225.37,6.4198]
[1734152712366,23.776884,225.47,225.37,13.88247222]
[1734152713373,23.776884,225.47,225.37,6.4198]
[1734152713374,20.0,225.44,225.37,6.4198]
[1734152717178,23.776884,225.43,225.37,6.4198]
[1734152717554,43.776884,225.44,225.37,6.4198]
[1734152718477,49.321684,225.44,225.37,6.4198]
[1734152724667,49.321684,225.44,225.36,1.6647]
[1734152726482,60.411084,225.44,225.36,1.6647]
[1734152726681,20.0,225.39,225.36,1.6647]
[1734152727074,23.776884,225.38,225.36,1.6647]
[1734152733081,23.776884,225.38,225.31,7.6025]
[1734152739381,23.776884,225.36,225.31,7.6025]
[1734152741095,23.776884,225.36,225.31,1.5041]
[1734152741986,20.0,225.38,225.31,1.5041]
[1734152745183,23.776884,225.37,225.31,1.5041]
[1734152761892,23.776884,225.35,225.31,1.5041]
[1734152764917,23.776884,225.35,225.26,6.4416]
[1734152764918,23.776884,225.35,225.26,8.0548]
[1734152774344,20.0,225.38,225.27,7.46267222]
[1734152774628,5.5458,225.4,225.29,9.09427222]
[1734152774629,43.776884,225.37,225.29,9.09427222]
[1734152776906,43.776884,225.37,225.29,1.6316]
[1734152787742,49.323384,225.37,225.29,1.6316]
[1734152789338,29.323384,225.37,225.29,1.6316]
[1734152798230,20.0,225.34,225.29,1.6316]
[1734152798641,29.323384,225.37,225.29,1.6316]
[1734152805156,5.5455,225.41,225.29,1.6316]
[1734152805352,5.5455,225.41,225.31,9.06847222]
[1734152805646,5.5455,225.41,225.32,7.46267222]
[1734152806048,5.5455,225.41,225.31,9.06847222]
[1734152807042,5.5455,225.41,225.31,1.6058]
[1734152808260,5.5455,225.41,225.31,9.06847222]
[1734152808428,9.93058737,225.42,225.34,7.8994]
[1734152823774,23.776884,225.41,225.34,7.8994]
[1734152824151,5.5456,225.4,225.34,1.6058]
[1734152824477,23.776884,225.39,225.34,1.6058]
[1734152828541,23.776884,225.37,225.34,1.6058]
[1734152837389,43.776884,225.34,225.29,6.4384]
[1734152837593,23.776884,225.34,225.27,1.6329]
[1734152837892,20.0,225.32,225.27,1.6329]
[1734152838186,23.776884,225.31,225.27,1.6329]
[1734152854176,23.776884,225.29,225.27,1.6329]
[1734152860706,20.0,225.32,225.27,1.6329]
[1734152860707,23.776884,225.31,225.27,1.6329]
[1734152861198,9.93430321,225.34,225.27,1.6329]
[1734152862688,23.776884,225.33,225.27,1.6329]
[1734152864221,9.93430321,225.34,225.27,9.09557222]
[1734152864780,9.93430321,225.34,225.27,1.6329]
[1734152867312,23.776884,225.33,225.27,1.6329]
[1734152876132,9.93430321,225.34,225.27,1.6329]
[1734152876817,9.93430321,225.34,225.27,9.09557222]
[1734152878122,9.93430321,225.34,225.27,1.6329]
[1734152878514,23.776884,225.37,225.27,1.6329]
[1734152886526,5.5466,225.36,225.27,1.6329]
[1734152886826,23.776884,225.35,225.27,1.6329]
[1734152894513,23.776884,225.35,225.28,6.5848]
[1734152895111,5.5458,225.4,225.28,14.04747222]
[1734152895325,23.776884,225.39,225.29,1.5481]
[1734152897641,20.0,225.36,225.29,1.5481]
[1734152897943,23.776884,225.39,225.29,1.5481]
[1734152899648,23.776884,225.39,225.29,9.01077222]
[1734152899944,23.776884,225.39,225.29,1.5481]
[1734152902722,23.776884,225.39,225.29,9.01077222]
[1734152902932,8.26478349,225.44,225.32,7.46267222]
[1734152903127,5.5448,225.44,225.34,6.0309]
[1734152904243,23.776884,225.43,225.34,6.0309]
[1734152909150,23.776884,225.44,225.34,6.0309]
[1734152909330,23.776884,225.41,225.34,6.0309]
[1734152913638,23.276884,225.41,225.34,6.0309]
[1734152918652,23.776884,225.39,225.34,6.0309]
[1734152920250,23.776884,225.37,225.33,1.5916]
[1734152925641,23.776884,225.35,225.29,6.3423]
[1734152928967,23.776884,225.33,225.29,6.3423]
[1734152942283,5.5463,225.38,225.29,6.3423]
[1734152942573,23.776884,225.37,225.29,6.3423]
[1734152982123,23.776884,225.37,225.3,1.6457]
[1734153006060,23.276884,225.37,225.3,1.6457]
[1734153012460,23.776884,225.38,225.3,1.6457]
[1734153013241,23.776884,225.36,225.3,1.6457]
[1734153018741,23.776884,225.34,225.24,1.6194]
[1734153021748,23.776884,225.34,225.24,9.08207222]
[1734153025365,23.776884,225.34,225.25,7.46267222]
[1734153025569,5.5469,225.35,225.29,6.0964]
[1734153025570,20.0,225.35,225.29,6.0964]
[1734153025869,5.5461,225.39,225.29,13.55907222]
[1734153027173,23.776884,225.38,225.29,13.55907222]
[1734153028271,23.776884,225.38,225.29,6.0964]
[1734153046481,2.6060742,225.41,225.25,1.6651]
[1734153046482,23.776884,225.34,225.25,1.6651]
[1734153047502,29.324184,225.34,225.25,1.6651]
[1734153089415,29.324184,225.34,225.26,8.1384]
[1734153089710,7.462672,225.43,225.31,1.5685]
[1734153089899,5.5453,225.42,225.32,7.46267222]
[1734153090412,5.5453,225.42,225.31,9.03117222]
[1734153090595,5.5453,225.42,225.31,1.5685]
[1734153091010,23.776884,225.41,225.31,1.5685]
[1734153093301,23.776884,225.39,225.31,1.5685]
[1734153097000,23.776884,225.37,225.31,1.5685]
[1734153110736,23.776884,225.33,225.31,1.5685]
[1734153128338,23.776884,225.33,225.25,6.6312]
[1734153128650,20.0,225.3,225.25,8.2244]
[1734153128859,23.776884,225.29,225.25,8.2244]
[1734153129247,23.776884,225.29,225.25,1.5932]
[1734153129433,5.5486,225.28,225.25,1.5932]
[1734153129634,23.776884,225.27,225.25,1.5932]
[1734153135539,23.776884,225.27,225.21,6.6312]
[1734153144968,5.5476,225.32,225.23,7.46267222]
[1734153145158,5.5476,225.32,225.25,1.5469]
[1734153146061,20.0,225.33,225.25,1.5469]
[1734153146577,23.776884,225.32,225.25,1.5469]
[1734153147870,5.5479,225.31,225.25,1.5469]
[1734153148058,23.776884,225.3,225.25,1.5469]
[1734153151548,20.0,225.33,225.25,1.5469]
[1734153151780,5.5471,225.35,225.25,9.00957222]
[1734153152286,5.5471,225.35,225.26,7.46267222]
[1734153152850,5.5471,225.35,225.25,1.5469]
[1734153153556,23.776884,225.34,225.25,1.5469]
[1734153157889,23.776884,225.34,225.25,9.00957222]
[1734153158103,23.776884,225.34,225.26,13.47997222]
[1734153160081,23.776884,225.34,225.26,6.0173]
[1734153161969,23.776884,225.34,225.27,7.46267222]
[1734153164162,23.776884,225.34,225.26,13.47997222]
[1734153168483,23.776884,225.34,225.26,6.0173]
[1734153169470,23.776884,225.34,225.26,13.47997222]
[1734153169671,23.776884,225.34,225.27,1.5836]
[1734153175905,23.776884,225.32,225.27,1.5836]
[1734153182210,25.5461,225.38,225.27,1.5836]
[1734153183621,23.776884,225.37,225.27,1.5836]
[1734153185487,23.776884,225.35,225.27,1.5836]
[1734153193017,23.776884,225.35,225.27,9.04627222]
[1734153193518,23.776884,225.37,225.28,7.46267222]
[1734153193719,5.5458,225.4,225.29,7.5591]
[1734153195201,23.776884,225.39,225.29,7.5591]
[1734153200025,23.776884,225.37,225.29,7.5591]
[1734153203922,23.776884,225.35,225.29,7.5591]
[1734153207435,23.776884,225.33,225.29,7.5591]
[1734153223443,83.30300335,225.4,225.29,7.5591]
[1734153223749,20.0,225.36,225.29,7.5591]
[1734153224833,23.776884,225.34,225.29,7.5591]
[1734153233453,5.5469,225.35,225.29,1.5586]
[1734153233454,23.776884,225.35,225.29,1.5586]
[1734153233646,22.62517005,225.36,225.29,1.5586]
[1734153233647,23.776884,225.32,225.29,1.5586]
[1734153240658,20.0,225.34,225.29,1.5586]
[1734153241950,23.776884,225.33,225.29,1.5586]
[1734153242537,5.5456,225.41,225.3,6.158]
[1734153243838,20.0,225.38,225.3,6.158]
[1734153244065,23.776884,225.37,225.3,6.158]
[1734153259586,23.776884,225.41,225.3,6.158]
[1734153265087,5.5456,225.4,225.3,6.158]
[1734153265265,23.776884,225.39,225.3,6.158]
[1734153266555,23.776884,225.37,225.3,6.158]
[1734153273376,5.5466,225.36,225.3,6.158]
[1734153273584,5.5466,225.36,225.29,1.5586]
[1734153274279,20.0,225.34,225.29,1.5586]
[1734153274665,20.0,225.33,225.29,1.5586]
[1734153274866,43.776884,225.33,225.29,1.5586]
[1734153275173,23.776884,225.32,225.29,1.5586]
[1734153275357,29.324484,225.32,225.29,1.5586]
[1734153276260,29.324484,225.32,225.24,7.6791]
[1734153276716,23.776884,225.28,225.24,7.6791]
[1734153290878,20.0,225.29,225.24,7.6791]
[1734153291084,5.5476,225.32,225.24,7.6791]
[1734153292683,23.776884,225.31,225.24,7.6791]
[1734153295590,23.776884,225.29,225.24,7.6791]
[1734153305691,23.776884,225.29,225.24,1.535]
[1734153305894,43.776884,225.25,225.19,7.8056908]
[1734153312889,5.5486,225.28,225.2,7.46267222]
[1734153313921,5.5486,225.28,225.19,7.8056908]
[1734153314229,23.776884,225.27,225.2,7.46267222]
[1734153316394,23.776884,225.27,225.21,7.46267222]
[1734153317622,23.776884,225.27,225.22,7.46267222]
[1734153317923,23.776884,225.31,225.22,7.46267222]
[1734153319907,23.776884,225.31,225.2,0.66590748]
[1734153320105,23.776884,225.31,225.22,7.46267222]
[1734153326334,23.776884,225.31,225.21,7.46267222]
[1734153328021,23.776884,225.31,225.22,7.46267222]
[1734153328628,23.776884,225.31,225.23,7.46267222]
[1734153330318,23.776884,225.31,225.24,7.46267222]
[1734153330523,23.776884,225.35,225.27,7.46267222]
[1734153331245,23.776884,225.35,225.26,7.46267222]
[1734153331536,23.776884,225.35,225.24,7.46267222]
[1734153336445,23.776884,225.35,225.25,7.46267222]
[1734153337444,23.776884,225.35,225.24,7.46267222]
[1734153339356,23.776884,225.31,225.21,1.5552]
[1734153340558,29.324884,225.31,225.21,1.5552]
[1734153342057,29.324884,225.31,225.21,9.01787222]
[1734153343064,29.324884,225.31,225.21,1.5552]
[1734153345760,29.324884,225.31,225.19,13.66946302]
[1734153348459,29.324884,225.31,225.19,7.62836302]
[1734153349660,29.324884,225.31,225.19,0.1656908]
[1734153349885,29.324884,225.31,225.19,7.62836302]
[1734153350658,23.776884,225.27,225.19,0.1656908]
[1734153352548,23.776884,225.23,225.19,0.1656908]
[1734153352958,23.776884,225.27,225.19,0.1656908]
[1734153353157,23.776884,225.23,225.19,0.1656908]
[1734153357067,23.776884,225.24,225.19,0.1656908]
[1734153367990,5.5495,225.25,225.19,0.1656908]
[1734153368358,4.96378954,225.25,225.19,0.1656908]
[1734153378970,23.776884,225.28,225.21,7.46267222]
[1734153379295,23.776884,225.28,225.21,13.78187222]
[1734153379795,23.776884,225.28,225.21,6.3192]
[1734153382882,23.776884,225.29,225.22,7.46267222]
[1734153383093,23.776884,225.32,225.22,7.46267222]
[1734153383393,10.34822901,225.33,225.23,1.6385]
[1734153383786,5.5475,225.33,225.23,1.6385]
[1734153384591,23.776884,225.32,225.23,1.6385]
[1734153394812,23.776884,225.3,225.23,1.6385]
[1734153396243,20.0,225.23,225.19,0.1656908]
[1734153396509,23.776884,225.26,225.19,0.1656908]
[1734153396510,43.776884,225.2,225.19,0.1656908]
[1734153397307,43.776884,225.2,225.19,9.08e-05]
[1734153397690,23.776884,225.15,225.1,1.5692]
[1734153398024,20.0,225.12,225.05,1.5692]
[1734153398188,23.776884,225.11,225.05,1.5692]
[1734153399790,23.776884,225.11,225.05,9.03187222]
[1734153399990,23.776884,225.14,225.09,7.46267222]
[1734153400702,20.0,225.15,225.09,7.46267222]
[1734153401331,20.0,225.15,225.08,7.46267222]
[1734153401490,20.0,225.15,225.09,7.46267222]
[1734153402491,20.0,225.15,225.1,7.46267222]
[1734153404704,2.71152095,225.22,225.12,7.46267222]
[1734153404705,23.776884,225.21,225.12,7.46267222]
[1734153405288,23.776884,225.21,225.13,7.46267222]
[1734153407416,23.776884,225.21,225.07,0.66621114]
[1734153407622,23.776884,225.21,225.12,7.46267222]
[1734153409044,23.776884,225.21,225.13,7.46267222]
[1734153409314,5.549,225.27,225.17,7.46267222]
[1734153410014,5.549,225.27,225.16,7.46267222]
[1734153410414,20.0,225.24,225.16,7.46267222]
[1734153410600,23.776884,225.23,225.16,7.46267222]
[1734153411834,23.776884,225.23,225.14,1.5692]
[1734153412014,23.776884,225.23,225.15,7.46267222]
[1734153415097,23.776884,225.23,225.16,7.46267222]
[1734153415800,23.776884,225.23,225.15,7.46267222]
[1734153421129,23.776884,225.23,225.14,1.5692]
[1734153434364,23.776884,225.23,225.1,7.46267222]
[1734153434568,23.776884,225.23,225.12,7.46267222]
[1734153436055,23.776884,225.23,225.13,7.46267222]
[1734153436654,23.776884,225.23,225.15,7.46267222]
[1734153437355,23.776884,225.23,225.16,7.46267222]
[1734153437754,23.776884,225.23,225.15,7.46267222]
[1734153438579,23.776884,225.23,225.16,7.46267222]
[1734153439663,23.776884,225.23,225.17,7.46267222]
[1734153439975,23.776884,225.23,225.15,7.46267222]
[1734153440382,23.776884,225.23,225.17,7.46267222]
[1734153441063,23.776884,225.23,225.16,7.46267222]
[1734153442863,5.5488,225.28,225.17,7.46267222]
[1734153443054,23.776884,225.27,225.18,7.46267222]
[1734153445252,23.776884,225.27,225.17,7.46267222]
[1734153445453,23.776884,225.27,225.16,7.46267222]
[1734153457572,23.776884,225.27,225.13,0.6660575]
[1734153457573,23.776884,225.27,225.17,7.46267222]
[1734153461659,23.71832076,225.27,225.13,20.0]
[1734153461865,23.71832076,225.27,225.14,7.46267222]
[1734153462061,5.5491,225.26,225.14,7.46267222]
[1734153462472,5.5491,225.26,225.13,7.46267222]
[1734153462806,5.5491,225.26,225.12,20.0]
[1734153463085,5.5491,225.26,225.14,7.46267222]
[1734153463863,23.776884,225.25,225.14,7.46267222]
[1734153464978,23.776884,225.23,225.14,7.46267222]
[1734153467180,23.776884,225.23,225.12,20.0]
[1734153467389,23.776884,225.23,225.14,7.46267222]
[1734153468971,23.776884,225.23,225.16,7.46267222]
[1734153470778,0.8695,225.25,225.16,7.46267222]
[1734153472075,23.776884,225.24,225.16,7.46267222]
[1734153476978,23.776884,225.24,225.15,7.46267222]
[1734153477174,23.776884,225.24,225.14,7.46267222]
[1734153477579,23.776884,225.24,225.12,20.0]
[1734153477805,23.776884,225.24,225.14,7.46267222]
[1734153488509,5.5498,225.23,225.11,20.0]
[1734153488686,23.776884,225.22,225.12,7.46267222]
[1734153490201,23.776884,225.22,225.09,1.6055]
[1734153490401,23.776884,225.2,225.11,7.46267222]
[1734153493822,23.776884,225.2,225.1,7.46267222]
[1734153496201,23.776884,225.2,225.12,7.46267222]
[1734153496401,23.776884,225.2,225.11,7.46267222]
[1734153498893,23.776884,225.2,225.06,18.32659801]
[1734153499088,23.776884,225.2,225.1,7.46267222]
[1734153501228,23.776884,225.2,225.09,7.46267222]
[1734153502538,29.327984,225.18,225.05,20.0]
[1734153502831,29.327984,225.18,225.06,7.46267222]
[1734153503212,29.327984,225.18,225.04,1.6434]
[1734153503391,29.327984,225.18,225.06,7.46267222]
[1734153503593,29.327984,225.18,225.07,7.46267222]
[1734153504802,29.327984,225.18,225.04,1.6434]
[1734153505011,29.327984,225.18,225.06,7.46267222]
[1734153505211,23.776884,225.16,225.06,7.46267222]
[1734153506711,6.2292,225.17,225.02,5.40859015]
[1734153506712,23.776884,225.14,225.02,5.40859015]
[1734153506900,23.776884,225.14,225.07,7.46267222]
[1734153508216,23.776884,225.14,225.06,7.46267222]
[1734153508417,23.776884,225.14,225.03,7.46267222]
[1734153509703,23.776884,225.14,225.0,20.0]
[1734153510021,23.776884,225.14,225.04,7.46267222]
[1734153511818,5.5523,225.13,224.98,0.66646904]
[1734153512115,23.776884,225.12,225.03,7.46267222]
[1734153512515,23.776884,225.12,225.05,7.46267222]
[1734153513117,23.776884,225.12,224.99,20.0]
[1734153513422,23.776884,225.12,225.03,7.46267222]
[1734153513611,23.776884,225.12,224.97,0.66656973]
[1734153513612,23.776884,225.12,224.99,20.0]
[1734153513813,23.776884,225.12,225.02,7.46267222]
[1734153514222,23.776884,225.12,224.99,20.0]
[1734153514401,23.776884,225.1,225.02,7.46267222]
[1734153515303,23.776884,225.1,224.97,0.66656973]
[1734153515503,23.776884,225.1,225.02,7.46267222]
[1734153516717,23.776884,225.1,224.97,0.66656973]
[1734153517030,23.776884,225.1,225.02,7.46267222]
[1734153517914,23.776884,225.1,225.01,7.46267222]
[1734153521822,23.776884,225.1,225.0,7.46267222]
[1734153522919,23.776884,225.11,225.02,7.46267222]
[1734153523124,23.776884,225.11,225.03,7.46267222]
[1734153524922,23.776884,225.11,224.98,20.0]
[1734153525224,23.776884,225.11,225.02,7.46267222]
[1734153529918,23.776884,225.11,224.99,0.66650303]
[1734153530236,23.776884,225.11,225.01,7.46267222]
[1734153536554,23.776884,225.11,224.99,0.66650303]
[1734153536756,23.776884,225.11,225.01,7.46267222]
[1734153537049,23.776884,225.11,225.01,8.12911843]
[1734153538013,23.776884,225.11,225.01,7.46267222]
[1734153540739,23.776884,225.11,224.99,0.66646155]
[1734153540929,23.776884,225.11,224.98,27.46267222]
[1734153543123,0.8695,225.1,224.98,20.0]
[1734153543340,23.776884,225.09,224.98,27.46267222]
[1734153545337,23.776884,225.09,225.02,7.46267222]
[1734153545540,23.776884,225.09,225.0,7.46267222]
[1734153547743,0.8695,225.18,225.01,0.25098]
[1734153547945,0.8695,225.18,225.07,7.46267222]
[1734153548438,0.8695,225.18,225.06,7.46267222]
[1734153549046,23.776884,225.17,225.06,7.46267222]
[1734153550050,23.776884,225.17,225.03,0.66631525]
[1734153550353,23.776884,225.17,225.06,7.46267222]
[1734153550650,23.776884,225.13,225.06,7.46267222]
[1734153553648,23.776884,225.13,225.03,0.66631525]
[1734153553960,23.776884,225.13,225.06,7.46267222]
[1734153555355,23.776884,225.13,225.05,7.46267222]
[1734153557536,23.776884,225.14,225.03,8.12898747]
[1734153557736,23.776884,225.14,225.03,7.46267222]
[1734153558934,23.776884,225.14,225.02,27.46267222]
[1734153561264,23.776884,225.14,225.02,20.0]
[1734153561461,23.776884,225.14,225.02,27.46267222]
[1734153562362,23.776884,225.14,225.04,7.46267222]
[1734153563588,23.776884,225.14,225.03,7.46267222]
[1734153563941,23.776884,225.14,225.02,20.0]
[1734153564148,23.776884,225.14,225.03,7.46267222]
[1734153565560,23.776884,225.14,225.02,27.46267222]
[1734153565766,23.776884,225.14,225.04,7.46267222]
[1734153565971,23.776884,225.14,225.03,7.46267222]
[1734153566161,23.776884,225.14,225.02,20.0]
[1734153566468,23.776884,225.14,225.02,27.46267222]
[1734153570671,23.776884,225.14,225.02,20.0]
[1734153570976,30.768184,225.12,225.0,27.46267222]
[1734153572082,30.768184,225.12,225.01,7.46267222]
[1734153577031,30.768184,225.12,224.99,0.6665097]
[1734153577176,30.768184,225.12,225.01,7.46267222]
[1734153581287,24.646384,225.12,225.05,7.46267222]
[1734153582577,24.646384,225.12,225.02,0.66649488]
[1734153582883,24.646384,225.12,225.04,7.46267222]
[1734153585080,24.646384,225.12,225.03,7.46267222]
[1734153588796,0.8695,225.12,225.04,8.129059]
[1734153589794,0.8695,225.12,225.02,20.0]
[1734153589981,0.8695,225.12,225.03,8.12905841]
[1734153597079,23.776884,225.13,225.03,8.12905841]
[1734153600095,23.776884,225.13,225.03,0.66638619]
[1734153600696,23.776884,225.13,225.02,27.46267222]
[1734153601891,23.776884,225.13,225.02,20.0]
[1734153602210,23.776884,225.13,225.0,7.46267222]
[1734153602710,23.776884,225.11,225.0,7.46267222]
[1734153605304,23.776884,225.11,225.01,7.46267222]
[1734153607904,23.776884,225.11,225.02,7.46267222]
[1734153608111,23.776884,225.13,225.03,8.12914698]
[1734153615517,23.776884,225.13,225.04,7.46267222]
[1734153615817,23.776884,225.15,225.04,8.12901915]
[1734153616016,23.776884,225.15,225.04,7.46267222]
[1734153617831,23.776884,225.15,225.06,7.46267222]
[1734153618281,5.5517,225.16,225.06,7.46267222]
[1734153618913,5.5517,225.16,225.07,7.46267222]
[1734153626108,5.5517,225.16,225.06,7.46267222]
[1734153628409,5.5517,225.16,225.05,8.12902239]
[1734153630699,23.776884,225.15,225.02,0.6663242]
[1734153630894,23.776884,225.15,225.03,7.46267222]
[1734153631605,23.776884,225.13,225.02,0.6663242]
[1734153631803,23.776884,225.13,225.03,7.46267222]
[1734153633109,23.776884,225.13,225.04,7.46267222]
[1734153634535,23.776884,225.13,225.03,7.46267222]
[1734153634706,23.776884,225.13,225.02,7.46267222]
[1734153635724,12.795,225.12,224.99,0.66646095]
[1734153635896,23.776884,225.11,224.96,0.5344478]
[1734153636096,23.776884,225.11,224.97,0.66659925]
[1734153636300,23.776884,225.11,224.98,7.46267222]
[1734153636802,23.776884,225.11,224.99,7.46267222]
[1734153637002,23.776884,225.09,224.99,7.46267222]
[1734153638023,23.776884,225.09,225.02,7.46267222]
[1734153638399,23.776884,225.09,224.99,0.66658453]
[1734153638400,23.776884,225.09,225.01,7.46267222]
[1734153639418,23.776884,225.09,225.0,7.46267222]
[1734153643216,23.776884,225.09,225.01,7.46267222]
[1734153647314,23.776884,225.11,225.01,7.46267222]
[1734153649942,23.776884,225.11,225.02,7.46267222]
[1734153650231,23.776884,225.11,224.99,2.20998453]
[1734153650430,7.2425,225.12,225.05,7.46267222]
[1734153650636,7.0559,225.17,225.07,7.46267222]
[1734153650836,7.0559,225.17,225.08,7.46267222]
[1734153651130,7.0559,225.17,225.01,0.66639191]
[1734153651131,7.0559,225.17,225.07,7.46267222]
[1734153652131,7.0559,225.17,225.06,7.46267222]
[1734153652744,23.776884,225.16,225.06,7.46267222]
[1734153654224,23.776884,225.16,225.07,7.46267222]
[1734153655639,23.776884,225.19,225.11,7.46267222]
[1734153655820,6.4198,225.22,225.11,7.46267222]
[1734153656023,0.8695,225.22,225.11,7.46267222]
[1734153656341,0.8695,225.22,225.12,7.46267222]
[1734153656827,0.8695,225.22,225.13,7.46267222]
[1734153657439,23.776884,225.21,225.13,7.46267222]
[1734153657947,0.8695,225.22,225.14,7.46267222]
[1734153659326,23.776884,225.21,225.15,7.46267222]
[1734153659633,23.776884,225.22,225.15,7.46267222]
[1734153660238,6.4472,225.23,225.15,7.46267222]
[1734153660441,43.776884,225.26,225.16,7.46267222]
[1734153661054,43.776884,225.26,225.17,7.46267222]
[1734153661331,20.0,225.26,225.17,7.46267222]
[1734153662662,23.776884,225.25,225.17,7.46267222]
[1734153665233,23.776884,225.25,225.11,6.87795908]
[1734153665234,23.776884,225.25,225.2,7.46267222]
[1734153665635,23.776884,225.25,225.18,7.46267222]
[1734153666956,23.776884,225.25,225.15,20.0]
[1734153667140,23.776884,225.25,225.16,7.46267222]